Cogmind - Beta 13 @@@ ROGUE MODE // 2024.04.04 @ 02:24:08 Player: oberon720 Result: Destroyed by H-55 Commando with Gauss Rifle Performance ------------- Evolutions (2) 1000 Regions Visited (3) 600 Robots Destroyed (144) 720 Value Destroyed (3596) 3596 Prototype IDs (7) 140 Alien Tech Used (0) 0 Bonus (418) 418 TOTAL SCORE: 6474 Bonus ------- High Alert Combat Kills 418 Cogmind --------- Core Integrity 0/550 Matter 273/300 Energy 38/100 System Corruption 0% Temperature Cool (9) Movement Core (700) Ox13 Location -8/Materials Parts ------- > --- POWER (2) -------- (None) > --- PROPULSION (3) --- (None) > --- UTILITY (4) ------ High-capacity Storage Unit Advanced Visual Processing Unit Advanced Targeting Computer > --- WEAPON (2) ------- (None) > --- INVENTORY (20) --- Power Amplifier Improved Heat Sink High-capacity Matter Pod (200) Weight Redist. System Improved Sensor Array Improved Signal Interpreter Active Sensor Suite Improved Terrain Scanner Terrain Scan Processor Advanced Targeting Computer Weapon Cycler Weapon Cycler High-powered Tractor Beam Peak State ------------ > --- POWER ------------ Light Nuclear Core Light Nuclear Core > --- PROPULSION ------- Light Treads Armored Treads Advanced Treads > --- UTILITY ---------- Large Storage Unit Advanced Visual Processing Unit Advanced Targeting Computer Remote Shield > --- WEAPON ----------- Autogun Assault Cannon > --- INVENTORY -------- Power Amplifier Improved Heat Sink High-capacity Matter Pod Weight Redist. System Signal Interpreter Improved Signal Interpreter Active Sensor Suite Improved Terrain Scanner Terrain Scan Processor Advanced Targeting Computer Weapon Cycler Weapon Cycler High-powered Tractor Beam [Rating: 36] Favorites ----------- Power Heavy Ion Engine Engine Heavy Ion Engine Power Core Light Nuclear Core Propulsion Light Treads Treads Light Treads Utility Large Storage Unit Device Structural Scanner Storage Large Storage Unit Processor Visual Processing Unit Hackware Hacking Suite Weapon Autogun Energy Cannon EM Pulse Cannon Ballistic Gun Autogun Ballistic Cannon Assault Cannon Build | -11 -10 -9 -8 ------- Run | Yrd Mat Mat Mat Slots Evolved 4 | . . 2 2 Power 1 | . . . 1 Propulsion 1 | . . 1 . Utility 2 | . . 1 1 Weapon . | . . . . Parts Attached 95 | 7 10 39 39 Power 18 | 1 3 4 10 Engine 11 | 1 3 4 3 Core 7 | . . . 7 Reactor . | . . . . Propulsion 34 | 2 3 18 11 Treads 34 | 2 3 18 11 Leg . | . . . . Wheel . | . . . . Hover . | . . . . Flight . | . . . . Utility 20 | 2 3 8 7 Device 9 | 1 2 3 3 Storage 4 | 1 1 1 1 Processor 6 | . . 4 2 Hackware 1 | . . . 1 Protection . | . . . . Artifact . | . . . . Weapon 23 | 2 1 9 11 Energy Gun . | . . . . Energy Cannon 1 | . . . 1 Ballistic Gun 19 | 2 1 9 7 Ballistic Cannon 3 | . . . 3 Launcher . | . . . . Special Weapon . | . . . . Impact Weapon . | . . . . Slashing Weapon . | . . . . Piercing Weapon . | . . . . Special Melee Weapon . | . . . . Unidentified Prototypes 2 | . . 2 . Parts Lost 30 | . 4 5 21 Power 4 | . . . 4 Propulsion 8 | . 1 1 6 Utility 7 | . 1 2 4 Weapon 11 | . 2 2 7 Highest Loss Streak 7 | . 2 2 7 To Critical Strikes . | . . . . Average Slot Usage (%) 94 | . 93 96 94 Engine 11 | . 14 11 10 Core 2 | . . . 5 Treads 28 | . 26 32 24 Device 8 | . 13 7 5 Storage 11 | . 14 11 9 Processor 11 | . . 12 17 Hackware 1 | . . . 3 Ballistic Gun 18 | . 23 21 12 Ballistic Cannon 1 | . . . 5 Naked Turns . | . . . . Heaviest Build 63 | 14 29 39 63 Greatest Support 66 | 40 40 60 66 Greatest Overweight (x) 13 | . 1 . 13 Average Overweight (x) . | . . . . Largest Inventory Capacity 20 | 8 15 15 20 Average Capacity 14 | 7 14 15 15 Most Carried 16 | 5 3 15 16 Average Carried 9 | 1 1 11 13 Final Capacity 20 | 8 15 15 20 Final Carried 15 | 1 3 12 15 Class Distribution -------------------- 75% | Mutant 24% | Scavenger-Mutant Dominant Class ---------------- Mutant | -10/Materials Scavenger-Mutant | -9/Materials Mutant | -8/Materials Resources | -11 -10 -9 -8 ----------- Run | Yrd Mat Mat Mat Matter Collected 4493 | 230 337 1947 1979 Remotely . | . . . . Salvage Created 5258 | 15 653 2328 2262 Parts 331 | 4 40 163 124 Haulers Intercepted 13 | . 2 6 5 Recyclers Shooed 7 | . 2 1 4 Parts Field Recycled . | . . . . Retrieved Matter . | . . . . Parts Self-Destructed . | . . . . Prevented . | . . . . Kills | -11 -10 -9 -8 ------- Run | Yrd Mat Mat Mat Combat Hostiles Destroyed 86 | . 9 38 39 Guns 76 | . 9 38 29 Cannons 10 | . . . 10 Classes Destroyed 15 | 1 7 5 2 Worker 15 | . 4 4 7 Builder 4 | . . 1 3 Tunneler 2 | 1 . . 1 Hauler 13 | . 2 6 5 Recycler 7 | . 1 2 4 Mechanic 3 | . 1 2 . Operator 4 | . . 2 2 Watcher 10 | . 3 5 2 Swarmer 16 | . 2 6 8 Grunt 47 | . 7 20 20 Duelist 1 | . . 1 . Protector 1 | . . 1 . Sentry 19 | . . 10 9 Hunter 1 | . . . 1 Heavy 1 | . . . 1 Best Kill Streak 9 | 1 5 7 9 Combat Bots Only 8 | . 3 7 8 Max Kills in Single Turn 2 | 1 1 2 1 Gunslinging 1 | . . 1 . Exploded . | . . . . Melee . | . . . . Uniques/NPCs Destroyed . | . . . . Combat | -11 -10 -9 -8 -------- Run | Yrd Mat Mat Mat Hostile Shots Fired 640 | . 111 209 320 Missed 168 | . 26 58 84 Damage Taken 6552 | . 951 1957 3644 Core 915 | . 162 201 552 Absorbed by Shields 92 | . . . 92 Regen/Repaired (Parts) 602 | . 139 . 463 Core Remaining (%) 61 | 100 35 49 . Volleys Fired 502 | 2 106 184 210 Largest 2 | 2 2 2 2 Hottest 67 | 40 40 46 67 Shots Fired 912 | 4 161 341 406 Gun 798 | 4 161 341 292 Cannon 114 | . . . 114 Launcher . | . . . . Special . | . . . . Kinetic 909 | 4 161 341 403 Thermal . | . . . . Explosive . | . . . . Electromagnetic 3 | . . . 3 Robot Hit Streak 24 | 1 11 24 18 Robot Miss Streak 8 | 1 4 3 8 Penetration Max 1 | . . . 1 Secondary Targets 11 | . 2 7 2 Max Gunslinging Chain 1 | . 1 1 1 Shots Hit Robots 622 | 2 112 221 287 Core Hits 242 | 1 46 92 103 Critical Kills 2 | . . . 2 Critical Parts Destroyed 4 | . 1 2 1 Critical Strikes 7 | . 1 2 4 Destroy 6 | . 1 2 3 Blast 1 | . . . 1 Melee Attacks . | . . . . Impact . | . . . . Slashing . | . . . . Piercing . | . . . . Sneak Attacks . | . . . . Combat Hostiles . | . . . . Follow-up Attacks . | . . . . Damage Inflicted 9560 | 23 931 3462 5144 Guns 7559 | 23 931 3388 3217 Cannons 1924 | . . . 1924 Explosions 74 | . . 74 . Melee . | . . . . Ramming 3 | . . . 3 Kinetic 9413 | 23 931 3388 5071 Thermal . | . . . . Explosive 74 | . . 74 . Electromagnetic 70 | . . . 70 Impact . | . . . . Slashing . | . . . . Piercing . | . . . . Highest Corruption 2 | . 2 . . Average Corruption 2 | . 2 . . Corruption Purged . | . . . . Corruption Blocked . | . . . . Effects 11 | . 11 . . Message Errors 4 | . 4 . . Matter Fused 3 | . 3 . . Heat Flow Errors 2 | . 2 . . Data Loss (major) 1 | . 1 . . Misfires 1 | . 1 . . Overload Shots . | . . . . Overflow Damage 93 | . . 34 59 Projectiles 59 | . . . 59 Explosions 34 | . . 34 . Melee . | . . . . Knockbacks 13 | . . . 13 Impact . | . . . . Kinetic 12 | . . . 12 Secondary 1 | . . . 1 Self-Inflicted Damage . | . . . . Shots . | . . . . Rammed 1 | . . . 1 Targets Rammed 1 | . . . 1 Kicked . | . . . . Crushed . | . . . . Highest Temperature 273 | . 160 75 273 Average Temperature 39 | . 24 10 52 Received Heat Transfer 2675 | . 417 939 1319 Effects 3 | . . . 3 Energy Bleed 1 | . . . 1 Interference 2 | . . . 2 Siege Activations . | . . . . Robots Corrupted . | . . . . Combat Hostiles . | . . . . Parts Fried . | . . . . Impact Corruptions 1 | . . . 1 Robots Melted . | . . . . Combat Hostiles . | . . . . Parts Melted . | . . . . Heat Transferred . | . . . . Parts Sabotaged . | . . . . Parts Stolen . | . . . . Parts Stripped . | . . . . Power Chain Reactions . | . . . . Alert | -11 -10 -9 -8 ------- Run | Yrd Mat Mat Mat Peak Influence 682 | 5 201 682 646 Initial 224 | . 3 2 224 Average 295 | 1 55 352 438 Maximum Alert Level 2 | . 1 2 2 Low Security (%) 37 | 100 95 26 . Level 1 24 | . 4 29 34 Level 2 38 | . . 44 65 Level 3 . | . . . . Level 4 . | . . . . Level 5 . | . . . . High Security . | . . . . Max Security . | . . . . Squads Dispatched 14 | . 2 4 8 Investigation 3 | . 2 . 1 Extermination . | . . . . Reinforcement 6 | . . 1 5 Assault 3 | . . 3 . Garrison 2 | . . . 2 Intercept . | . . . . Searches Triggered . | . . . . Construction Impeded 2 | . . . 2 Haulers Reinforced . | . . . . Active Scanning Responses . | . . . . Cargo Convoy Interrupts . | . . . . Stealth | -11 -10 -9 -8 --------- Run | Yrd Mat Mat Mat Distress Signals 5 | . 2 1 2 Communications Jammed . | . . . . Distress Signals . | . . . . Times Spotted 140 | . 22 58 60 Peak Tracking Total 8 | . 5 8 6 Tactical Retreats 6 | . 1 2 3 Traps | -11 -10 -9 -8 ------- Run | Yrd Mat Mat Mat Traps Triggered 4 | . 3 1 . Indirectly . | . . . . Trap Hack Attempts . | . . . . Triggered . | . . . . Disarmed 4 | . . 4 . Reprogrammed . | . . . . Reused . | . . . . Traps Extracted . | . . . . Installed . | . . . . Triggered . | . . . . Machines | -11 -10 -9 -8 ---------- Run | Yrd Mat Mat Mat Machines Disabled 4 | . . 2 2 Max in Single Turn 2 | . . 2 1 Garrison Access 1 | . . . 1 Machines Repaired . | . . . . Machines Dismantled . | . . . . Machines Sabotaged . | . . . . Overloaded Fab Kills . | . . . . Hacking | -11 -10 -9 -8 --------- Run | Yrd Mat Mat Mat Machines Accessed 27 | . 8 10 9 Terminals 19 | . 6 8 5 Fabricators . | . . . . Repair Stations 3 | . 1 . 2 Recycling Units 3 | . 1 1 1 Scanalyzers 1 | . . 1 . Garrison Access 1 | . . . 1 Total Hacks 80 | . 17 29 34 Successful 47 | . 13 13 21 Failed 33 | . 4 16 13 Catastrophic 8 | . . 5 3 Database Lockouts . | . . . . Manual 16 | . 3 6 7 Terminals 50 | . 13 23 14 Fabricators . | . . . . Repair Stations 19 | . 3 . 16 Recycling Units 5 | . 1 2 2 Scanalyzers 4 | . . 4 . Garrison Access 2 | . . . 2 Terminal Hacks 24 | . 10 9 5 Record 2 | . 2 . . Robot Analysis 1 | . 1 . . Prototype ID Bank 3 | . . 2 1 Alert Level 5 | . 2 1 2 Unreport Threat 3 | . . 1 2 Locate Traps 2 | . . 2 . Disarm Traps 1 | . . 1 . Reinforcement Status 1 | . 1 . . Recall Investigation 1 | . 1 . . Zone Layout 5 | . 3 2 . Fabricator Hacks . | . . . . Repair Station Hacks 16 | . 2 . 14 Scan Component 8 | . 1 . 7 Repair 8 | . 1 . 7 Recycling Unit Hacks 4 | . 1 2 1 Report Inventory 1 | . . 1 . Retrieve Components 3 | . 1 1 1 Scanalyzer 2 | . . 2 . Insert Component 1 | . . 1 . Analyze 1 | . . 1 . Garrison Access Hacks 1 | . . . 1 Seal Access 1 | . . . 1 Unauthorized Hacks . | . . . . Terminals . | . . . . Fabricators . | . . . . Repair Stations . | . . . . Recycling Units . | . . . . Scanalyzers . | . . . . Garrison Access . | . . . . Data Cores Recovered 3 | . . 1 2 Used 1 | . . . 1 Hacking Detections 25 | . 6 10 9 Full Trace Events 4 | . . 1 3 Feedback Events . | . . . . Feedback Blocked . | . . . . Robot Schematics Acquired . | . . . . Robots Built . | . . . . Authchips . | . . . . Time . | . . . . Total Robot Build Rating . | . . . . Part Schematics Acquired 1 | . . 1 . Parts Built . | . . . . Authchips . | . . . . Time . | . . . . Total Part Build Rating . | . . . . Parts Repaired 8 | . 1 . 7 Time 268 | . 26 . 242 Parts Recycled . | . . . . Recycled Matter . | . . . . Retrieved Matter . | . . . . Retrieved Components 22 | . 3 9 10 Parts Scanalyzed 1 | . . 1 . Part Schematics Acquired 1 | . . 1 . Parts Damaged . | . . . . Bothacking | -11 -10 -9 -8 ------------ Run | Yrd Mat Mat Mat Used RIF Installer . | . . . . Robots Hacked . | . . . . Non-combat . | . . . . Combat . | . . . . Robot Hacks Applied . | . . . . Relay Couplers Released . | . . . . Fabnet Peak Effective % . | . . . . Robots Rewired . | . . . . Allies Hacked . | . . . . Hacks Repelled . | . . . . Allies | -11 -10 -9 -8 -------- Run | Yrd Mat Mat Mat Total Allies . | . . . . Largest Group . | . . . . Highest-Rated Group . | . . . . Highest-Rated Ally . | . . . . Total Orders . | . . . . Ally Attacks . | . . . . Total Damage . | . . . . Kills . | . . . . Allies Corrupted . | . . . . Allies Melted . | . . . . Intel | -11 -10 -9 -8 ------- Run | Yrd Mat Mat Mat Robot Analysis Total 1 | . 1 . . Derelict Logs Recovered . | . . . . Drone Launches . | . . . . Drone Recoveries . | . . . . Exploration | -11 -10 -9 -8 ------------- Run | Yrd Mat Mat Mat Turns Passed 6135 | 96 1706 2156 2177 Spaces Moved 2533 | 56 751 979 747 Core 13 | 12 . . 1 Treads 2520 | 44 751 979 746 Legs . | . . . . Wheels . | . . . . Hover . | . . . . Flight . | . . . . Fastest Speed 50 | 50 160 160 145 Average Speed 161 | 136 162 160 163 Slowest Speed 700 | 160 240 160 700 Overloaded Moves . | . . . . Propulsion Burnouts . | . . . . Robots Hopped . | . . . . Cave-ins Triggered . | . . . . Exploration Rate (%) 65 | 4 95 98 66 Regions Visited 3 Branch Regions . Pre-discovered Areas . | . . . . Known Exits Taken . | . . . . Unknown Exits Taken 3 | 1 1 1 . Scrap Searched . | . . . . Spaces Dug . | . . . . Terrain Destroyed 39 | . . 25 14 Melee . | . . . . Projectile 14 | . . . 14 AOE 25 | . . 25 . Terrain Rammed . | . . . . Walls Destroyed . | . . . . Machines Disabled . | . . . . Actions | -11 -10 -9 -8 --------- Run | Yrd Mat Mat Mat Total 3819 | 72 1104 1295 1348 Wait 552 | . 224 32 296 Move 2530 | 55 750 978 747 Hop . | . . . . Pick Up 94 | 8 10 39 37 Fast Attach 2 | . . . 2 Attach 43 | 7 4 13 19 Detach 2 | . . 1 1 Swap 50 | . 6 26 18 Drop 43 | . 4 22 17 Fire 502 | 2 106 184 210 Melee . | . . . . Ram . | . . . . Kick . | . . . . Crush 1 | . . . 1 Escape Stasis . | . . . . Rewire . | . . . . Trap . | . . . . Miscellaneous . | . . . . Route ------- -11/Scrapyard -10/Materials (discovered 5 exits: *Mat x2 / [*Min x2] / [*Sub]) -9/Materials (discovered 4 exits: *Mat x3 / [*Min]) -8/Materials (discovered 1 exit: [*Fac]) History --------- Turn | Location | Event 5 | -11/Scrapyard | Discovered new exit (range 15) 97 | -11/Scrapyard | Entered Materials 316 | -10/Materials | Build established: Mutant 634 | -10/Materials | Repaired Lgt. Treads 649 | -10/Materials | Discovered new exit (range 14) 935 | -10/Materials | Discovered new exit (range 13) 1081 | -10/Materials | Discovered new exit (range 12) 1298 | -10/Materials | Core integrity fell below 50% 1441 | -10/Materials | Discovered new exit (range 12) 1638 | -10/Materials | Discovered new exit (range 11) 1803 | -10/Materials | Entered another Materials area 1803 | -9/Materials | Evolved 2 slots: Propulsion x1, Utility x1 2038 | -9/Materials | Discovered new exit (range 7) 2274 | -9/Materials | Discovered new exit (range 16) 2783 | -9/Materials | Build established: Scavenger-Mutant 3284 | -9/Materials | Discovered new exit (range 17) 3403 | -9/Materials | First assault squad dispatched 3567 | -9/Materials | Destroyed 7 combat bots 3817 | -9/Materials | Core integrity fell below 50% 3927 | -9/Materials | Discovered new exit (range 13) 3959 | -9/Materials | Entered another Materials area 3959 | -8/Materials | Evolved 2 slots: Power x1, Utility x1 4079 | -8/Materials | Repaired Autogun 4112 | -8/Materials | Repaired Autogun 4146 | -8/Materials | Repaired Autogun 4272 | -8/Materials | Build established: Mutant 4420 | -8/Materials | Destroyed 8 combat bots 4853 | -8/Materials | Discovered new exit (range 19) 5141 | -8/Materials | Repaired Adv. Treads 5184 | -8/Materials | Repaired Lgt. Deuterium Engine 5224 | -8/Materials | Repaired Lgt. Nuclear Core 5257 | -8/Materials | Repaired Autogun 5748 | -8/Materials | Core integrity fell below 50% 5782 | -8/Materials | Lost 4 parts (1n1u2w) 5925 | -8/Materials | Found Prototype Device 6102 | -8/Materials | Core integrity fell below 20% 6119 | -8/Materials | Lost 7 parts (2p2n1u2w) 6136 | -8/Materials | Destroyed by H-55 Commando with Gauss Rifle Last Messages --------------- Connecting with Garrison Access... >>Seal Access door sealed. Slug penetrates Pressure Siphon. Lgt. Treads destroyed. Acquired 4 matter. Slug penetrates Garrison Access. Critical hit (Burn: +37). Slug penetrates Wall. Penetrated by Slug. Acquired EM Pulse Cannon. Penetrated by Slug. Y-45 Defender destroyed. Slug penetrates Wall. Penetrated by Slug. H-55 Commando IFF system glitched. Slug penetrates Y-45 Defender. EM Pulse Cannon destroyed. Arm. Treads destroyed. Penetrated by Slug. Map ----- +----------------------------------------------------+ | | | | | | | | | | | | | | | | | | | | | | | | | | | | | | | | | | | | | | | | | | | | | | | ????????????????????#########?????????? | | ????????????????????# **=#?????????? | | ????????????????????# @= #?????????? | | ????????????????????# *= #?????????? | | ????????????????????# * #?????????? | | ????????????????????# !hY =#?????????? | | ????????????????????###%/########+###?? | | ?????????####+#########^! #?? | | ????????+ % #?? | | ???????????# ##### """ ##? | | ???????????? ##### "G" "#? | | ?###+###???? ## ^ " "% T#? | | ?? ????? ## % ! "#? | | ?? ????? ## ^ ^ ##? | | ?? ?????# ?# %%"%% ! "#? | | ??# ?????# ???# %""" T#? | | ??# ##+####+###??#### %"" "#? | | ??# # #######! ##? | | ??# # "" / #?? | | ??# # "T ########### T"#######?? | | ??# # "" #?????????#####???????? | | ??# # """ #?????????????????????? | | ??# + ! """ #?????????????????????? | | ??# *!# """ #?????????????????????? | | ??#!!%# #?????????????????????? | | ### = ###############?????????????????? | | # %# """"""" #?????????????????? | +----------------------------------------------------+ Best States ------------- Heat Dissipation 35 Energy Generation 23 Energy Capacity 340 Matter Stores 300 Matter Capacity 300 Sight Range 20 Terrain Scan Range 16 Terrain Scan Density 10 Evasion (%) 50 Targeting Accuracy 8 Recoil Reduction 7 Offensive Hacking 10 Item Schematics ----------------- Cld. Ion Engine | -9/Materials | Scanalyzed Robot Schematics ------------------ None Fabricated ------------ Nothing Alien Tech Used ----------------- None Achievements -------------- None Challenges ------------ None Game ------ Seed MetafieldElectronInterpreter Manual? 0 Play Time 00:52:46 Cumulative 27.6 hours Start 2024.04.04 @ 01:31:37 End 2024.04.04 @ 02:24:08 Sessions 1 Manual Loads 0 Difficulty Rogue Special Mode None Game No. 59 Rogue 56 Adventurer 0 Explorer 3 Win Type - Total 0 Types 0/0/0/0/0/0/0/0/0 Lore% 23 Gallery% 31 Achievement% 26 Wizard Run 0 Options --------- Layout 0 ASCII 0 Keyboard 0 Movement Mouse Keybinds 0 Fullscreen 2 Font 18/SmallcapsGlow Map View 76x50 Zoom Use 0% Tactical HUD 0 Map Filters NONE Filters NONE Steam 1 RUN: 1954577c-6a21-4216-9b3f-998b3e6b37be